bitfinex/quotes_ETHUSD_20241223
["timestamp","ask_amount","ask_price","bid_price","bid_amount"]
[1734931891026,0.55,3323.4,3321.9,0.7563]
[1734931891228,3.55898,3323.4,3321.9,0.7563]
[1734931891530,3.55898,3323.4,3321.9,3.76661]
[1734931891942,3.55898,3323.4,3322.0,3.0]
[1734931892143,0.55,3323.6,3322.2,3.8188]
[1734931892833,3.0088,3323.6,3322.3,3.00992]
[1734931893032,4.3116465,3323.7,3322.4,6.00985]
[1734931893770,3.5520465,3323.7,3322.5,0.786]
[1734931893969,6.91595115,3323.7,3322.5,0.786]
[1734931894481,3.5520465,3323.7,3322.6,3.0]
[1734931895436,3.5520465,3323.7,3322.5,0.786]
[1734931895637,3.5520465,3323.7,3322.5,3.786]
[1734931895979,6.5607565,3323.7,3322.5,0.786]
[1734931896336,6.5607565,3323.7,3322.5,3.786]
[1734931897645,3.00889,3323.5,3322.5,3.786]
[1734931898180,3.00907,3323.3,3322.5,0.786]
[1734931898600,3.00946,3322.9,3322.1,0.8056]
[1734931898732,0.8312,3323.2,3322.1,0.8056]
[1734931898933,3.5520465,3323.3,3322.1,3.8157]
[1734931899181,3.00893,3323.5,3322.1,0.8056]
[1734931899551,0.8312,3323.6,3322.3,3.00995]
[1734931899934,18.29040645,3332.9,3322.8,0.782]
[1734931899935,0.8184,3323.9,3322.8,0.782]
[1734931900369,0.8184,3323.9,3322.8,3.782]
[1734931901049,3.00869,3323.7,3322.8,3.782]
[1734931901249,3.00869,3323.7,3322.8,0.782]
[1734931901443,0.8184,3323.9,3322.8,0.782]
[1734931901662,3.00884,3323.6,3322.8,0.782]
[1734931901849,3.0087,3323.7,3322.8,0.782]
[1734931904157,0.8184,3323.9,3322.8,0.782]
[1734931904667,3.82691,3323.9,3322.8,0.782]
[1734931904869,3.5520465,3324.1,3322.9,3.0]
[1734931905900,6.5603965,3324.1,3322.9,3.0]
[1734931907426,3.00843,3324.0,3322.9,3.0]
[1734931908883,3.5520465,3324.1,3322.8,0.782]
[1734931909215,0.55,3323.1,3322.2,0.8287]
[1734931909413,3.00967,3322.7,3321.8,0.8287]
[1734931909616,0.55,3322.6,3321.8,0.8287]
[1734931909764,3.00986,3322.5,3321.8,0.8287]
[1734931909969,0.55,3322.6,3321.8,0.8287]
[1734931910168,2.76014032,3322.4,3321.8,0.8287]
[1734931910518,3.01005,3322.2,3321.8,0.8287]
[1734931911431,2.76014032,3322.1,3320.4,9.7765]
[1734931911736,5.77104032,3321.3,3320.4,0.7965]
[1734931912032,2.76014032,3321.6,3320.4,0.7965]
[1734931912322,3.01068,3321.5,3320.4,0.7965]
[1734931912826,0.27601403,3321.6,3320.4,0.7965]
[1734931913330,3.01087,3321.3,3320.4,0.7965]
[1734931914026,3.28662403,3321.6,3320.4,0.7965]
[1734931914621,7.36064057,3322.5,3321.2,3.0]
[1734931914965,7.36064057,3322.5,3321.3,3.7965]
[1734931915108,3.55561057,3322.5,3321.4,3.0]
[1734931915705,3.55561057,3322.5,3321.3,0.7965]
[1734931915906,3.55561057,3322.5,3321.5,3.0]
[1734931916421,3.55561057,3322.5,3321.6,0.7978]
[1734931917979,4.21214163,3322.5,3321.6,0.7978]
[1734931918206,3.00998,3322.3,3321.6,0.7978]
[1734931918411,3.01005,3322.2,3321.6,0.7978]
[1734931918806,3.55561057,3322.5,3321.6,0.7978]
[1734931919005,6.56543057,3322.5,3321.6,0.7978]
[1734931919320,3.00996,3322.3,3321.6,0.7978]
[1734931921631,4.21215363,3322.5,3321.6,0.7978]
[1734931921932,7.22195363,3322.5,3321.6,0.7978]
[1734931922294,3.00988,3322.4,3321.6,0.7978]
[1734931922698,4.21215363,3322.5,3321.6,0.7978]
[1734931922892,3.55561057,3322.5,3321.6,3.7978]
[1734931923404,3.55561057,3322.5,3321.6,0.7978]
[1734931925490,3.55561057,3322.5,3321.6,3.7978]
[1734931925843,0.7984,3323.5,3321.4,0.787]
[1734931925986,3.8073,3323.5,3322.3,0.787]
[1734931926185,0.38073,3323.4,3322.3,3.787]
[1734931926528,0.7984,3323.5,3322.3,0.787]
[1734931926682,0.7984,3323.5,3322.4,3.00985]
[1734931927084,3.55561057,3323.7,3322.6,0.7677]
[1734931927335,3.82074,3323.9,3322.7,3.00956]
[1734931927637,3.00862,3323.8,3322.6,0.7677]
[1734931927981,3.00862,3323.8,3322.6,3.77738]
[1734931928180,0.8122,3323.9,3322.7,3.0]
[1734931928590,3.0086,3323.8,3322.7,3.0]
[1734931928936,3.39068,3323.8,3322.7,3.0]
[1734931930259,0.8122,3323.9,3322.7,3.00957]
[1734931930631,3.00861,3323.8,3322.8,0.7986]
[1734931930843,0.8122,3323.9,3322.8,0.7986]
[1734931931348,3.0087,3323.7,3322.8,0.7986]
[1734931931553,3.82074,3323.9,3322.8,0.7986]
[1734931931725,1.29276652,3323.9,3322.8,0.7986]
[1734931931911,3.00871,3323.7,3322.8,0.7986]
[1734931933326,3.55561057,3323.7,3322.8,0.7986]
[1734931933543,0.55,3323.6,3322.8,0.7986]
[1734931933774,3.009,3323.4,3322.8,0.7986]
[1734931934332,3.00878,3323.7,3322.8,0.7986]
[1734931934862,4.30127652,3323.9,3322.8,0.7986]
[1734931935019,3.82071,3323.9,3322.8,0.7986]
[1734931935760,3.00851,3323.9,3322.8,0.7986]
[1734931936277,1.89492788,3324.3,3323.0,0.7861]
[1734931936422,1.89492788,3324.3,3322.5,8.98]
[1734931936423,1.89492788,3324.3,3323.5,3.0]
[1734931936763,1.89492788,3324.3,3323.6,0.7861]
[1734931937121,2.63787572,3324.3,3323.6,0.7861]
[1734931937533,3.00857,3323.9,3323.6,0.7861]
[1734931937737,3.00857,3323.9,3322.8,0.7916]
[1734931938886,3.00857,3323.9,3322.8,3.7916]
[1734931939183,3.00854,3323.9,3322.9,0.7916]
[1734931939549,0.55,3323.8,3322.9,0.7916]
[1734931941343,3.00898,3323.4,3322.9,0.7916]
[1734931941543,0.55,3323.8,3322.9,0.7916]
[1734931941544,3.55866,3323.8,3322.9,0.7916]
[1734931941745,3.00902,3323.4,3322.9,0.7916]
[1734931942996,0.55,3323.8,3322.9,0.7916]
[1734931943146,3.00875,3323.7,3322.9,0.7916]
[1734931943551,3.00879,3323.6,3322.9,0.7916]
[1734931943801,1.29644222,3323.8,3322.9,0.7916]
[1734931943949,3.00897,3323.4,3322.9,0.7916]
[1734931944563,3.00993,3322.4,3322.0,0.7719]
[1734931944788,0.7591,3323.1,3322.0,0.7719]
[1734931944987,0.55,3322.7,3322.0,0.7719]
[1734931945222,3.01014,3322.1,3322.0,0.7719]
[1734931945426,3.01014,3322.1,3321.9,1.26213422]
[1734931945724,0.43091882,3323.0,3321.9,1.26213422]
[1734931945725,3.01023,3322.0,3321.9,1.26213422]
[1734931945879,3.311253,3322.0,3321.9,1.26213422]
[1734931946080,3.861253,3322.0,3321.9,1.26213422]
[1734931946283,7.41134123,3322.0,3321.9,4.22e-06]
[1734931946524,3.0107,3321.5,3321.1,0.813]
[1734931946723,4.40111123,3322.0,3321.1,0.813]
[1734931946931,3.01088,3321.3,3321.1,0.813]
[1734931947111,3.01098,3321.2,3320.8,0.81300422]
[1734931947487,3.01105,3321.1,3320.8,0.81300422]
[1734931948030,3.01105,3321.1,3320.8,0.813]
[1734931948724,3.01084,3321.4,3320.8,0.813]
[1734931948877,0.99011112,3321.9,3320.3,3.8263]
[1734931949225,3.01081,3321.4,3320.3,0.8263]
[1734931951530,0.7937,3322.5,3321.0,3.01114]
[1734931951685,2.52657051,3322.8,3321.6,3.7822]
[1734931951888,3.0096,3322.7,3321.6,3.7822]
[1734931952085,2.52657051,3322.8,3321.7,0.7822]
[1734931952330,2.52657051,3322.8,3321.7,3.0]
[1734931952497,2.68862788,3323.6,3322.3,0.7822]
[1734931952699,1.89492788,3323.6,3322.3,0.7822]
[1734931953399,1.89492788,3323.6,3322.5,3.0]
[1734931953644,3.00855,3323.9,3322.6,3.79189]
[1734931953928,3.00855,3323.9,3322.7,3.0]
[1734931954695,3.00855,3323.9,3322.7,3.00958]
[1734931954883,1.54390014,3324.0,3322.6,0.7822]
[1734931955089,3.00863,3323.8,3322.6,0.7822]
[1734931955592,3.00863,3323.8,3322.6,3.7822]
[1734931957328,3.00863,3323.8,3322.6,0.7822]
[1734931957532,3.00863,3323.8,3322.7,3.0]
[1734931957903,3.00863,3323.8,3322.6,0.7822]
[1734931958733,3.00863,3323.8,3322.6,3.7822]
[1734931959453,3.46388301,3323.8,3322.6,3.7822]
[1734931959620,3.0087,3323.7,3322.6,3.7822]
[1734931960828,0.45525301,3323.8,3322.6,0.7822]
[1734931961143,3.00923,3323.2,3322.6,0.7822]
[1734931961305,3.00891,3323.5,3322.6,0.7822]
[1734931961727,0.55,3323.7,3322.6,0.7822]
[1734931961907,3.55008823,3323.4,3322.6,0.7822]
[1734931962099,3.00922,3323.2,3322.6,0.7822]
[1734931962400,0.65593082,3323.2,3322.6,0.7822]
[1734931962606,3.66511082,3323.2,3321.9,0.8184]
[1734931962802,3.66511082,3323.2,3322.0,0.8184]
[1734931963005,0.65593082,3323.2,3322.2,0.8184]
[1734931963449,3.00878,3323.6,3322.4,0.8184]
[1734931963739,3.00856,3323.9,3322.7,3.00957]
[1734931963952,1.55630014,3324.0,3321.9,3.0]
[1734931963953,3.00864,3323.8,3322.8,0.8184]
[1734931965753,3.00842,3324.1,3322.8,0.8184]
[1734931966303,0.65585082,3324.1,3322.9,0.8184]
[1734931966648,3.00843,3324.0,3322.9,0.8184]
[1734931967106,3.0086,3323.8,3322.9,0.8184]
[1734931967926,0.65585082,3324.1,3322.9,0.8184]
[1734931968125,3.55008823,3323.7,3322.9,0.8184]
[1734931968555,3.00897,3323.4,3322.9,0.8184]
[1734931969426,3.55008823,3323.7,3322.9,0.8184]
[1734931969627,3.00889,3323.5,3322.9,0.8184]
[1734931969829,3.00851,3323.9,3322.9,0.8184]
[1734931970159,0.64375839,3323.8,3322.9,0.8184]
[1734931970355,3.00871,3323.7,3322.9,0.8184]
[1734931970726,0.64375839,3323.8,3322.9,0.8184]
[1734931971038,3.00884,3323.6,3322.9,0.8184]
[1734931971206,0.64375839,3323.8,3322.9,0.8184]
[1734931972227,3.55008823,3324.5,3323.2,3.0]
[1734931972425,3.00817,3324.3,3323.3,0.8001]
[1734931973356,5.44501611,3324.9,3323.4,0.8001]
[1734931973526,8.45269611,3324.9,3323.7,3.0]
[1734931973709,8.45269611,3324.9,3323.8,0.8001]
[1734931973909,1.09792666,3324.8,3323.8,0.8001]
[1734931974122,3.00788,3324.6,3323.8,0.8001]
[1734931974544,1.09792666,3324.8,3323.8,0.8001]
[1734931974722,3.00788,3324.6,3323.8,0.8001]
[1734931975847,3.0079,3324.6,3323.8,0.8001]
[1734931976047,3.008,3324.5,3323.8,0.8001]
[1734931976763,3.00751,3325.0,3323.8,0.8001]
[1734931977071,0.55,3324.9,3323.8,0.8001]
[1734931977263,3.00812,3324.4,3323.8,0.8001]
[1734931977615,3.00836,3324.1,3323.8,0.8001]
[1734931977816,3.00826,3324.2,3323.8,0.8001]
[1734931978924,3.00834,3324.1,3323.8,0.8001]
[1734931980170,3.00845,3324.0,3323.8,0.8001]
[1734931980373,3.00851,3323.9,3322.9,0.8001]
[1734931980875,3.00806,3324.4,3322.9,0.8001]
[1734931981075,0.300796,3324.5,3323.1,0.8001]
[1734931981247,3.00812,3324.4,3323.3,0.8119]
[1734931981674,3.00812,3324.4,3323.3,6.00903]
[1734931981980,1.3172,3324.9,3323.5,0.8119]
[1734931982278,0.1672951,3324.7,3323.5,0.8119]
[1734931982481,3.008,3324.5,3323.5,0.8119]
[1734931982772,3.00833,3324.1,3323.5,0.8119]
[1734931982992,2.92344162,3324.7,3323.5,0.8119]
[1734931983164,3.00827,3324.2,3323.5,0.8119]
[1734931983366,3.00871,3323.7,3323.5,0.8119]
[1734931983549,3.00847,3324.0,3323.5,0.8119]
[1734931984047,0.376017,3324.1,3323.5,0.8119]
[1734931984250,3.00824,3324.2,3323.5,0.8119]
[1734931984499,3.00808,3324.4,3323.5,0.8119]
[1734931984839,0.1672951,3324.7,3323.5,0.8119]
[1734931985037,3.00788,3324.6,3323.5,0.8119]
[1734931985232,3.00805,3324.5,3323.5,0.8119]
[1734931985658,3.00808,3324.4,3323.5,0.8119]
[1734931987640,3.00788,3324.6,3323.5,0.8119]
[1734931987840,3.00898,3323.4,3323.0,0.8216]
[1734931988038,3.00879,3323.6,3323.0,0.8216]
[1734931988436,0.55,3324.5,3323.0,0.8216]
[1734931988641,3.00812,3324.4,3323.2,3.00908]
[1734931988837,3.00782,3324.7,3323.4,0.8031]
[1734931989079,3.00782,3324.7,3323.6,3.0]
[1734931989385,3.00791,3324.6,3323.7,0.8031]
[1734931989740,3.00799,3324.5,3323.7,0.8031]
[1734931989937,7.6585744,3325.1,3323.7,0.8031]
[1734931990142,3.00809,3324.4,3323.7,0.8031]
[1734931990366,2.75614652,3324.8,3323.7,0.8031]
[1734931990566,2.75614652,3324.2,3323.4,0.8031]
[1734931990898,3.0091,3323.3,3323.1,0.8031]
[1734931991502,3.00887,3323.6,3323.1,0.8031]
[1734931991710,0.300887,3323.6,3323.1,0.8031]
[1734931992016,3.00894,3323.5,3323.1,0.8031]
[1734931992820,3.009,3323.4,3323.1,0.8031]
[1734931993690,3.00911,3323.3,3323.1,0.8031]
[1734931994102,0.55,3323.8,3323.1,0.8031]
[1734931994275,3.00883,3323.6,3323.1,0.8031]
[1734931994804,3.00887,3323.5,3323.1,0.8031]
[1734931996429,0.7601,3323.9,3323.1,0.8031]
[1734931996778,3.00896,3323.4,3323.1,0.8031]
[1734931997003,0.7601,3323.9,3323.1,0.8031]
[1734931997207,3.00908,3323.3,3323.1,0.8031]
[1734931998781,0.376859,3323.8,3322.8,0.7705]
[1734931998980,3.00951,3322.8,3322.5,0.7705]
[1734931999175,3.00953,3322.8,3322.5,0.7705]
[1734931999438,0.300953,3322.8,3322.4,1.25541272]
[1734931999740,3.00996,3322.3,3322.2,2.02591272]
[1734931999899,3.00996,3322.3,3322.2,1.25541272]
[1734932000732,3.00996,3322.3,3321.9,0.7705]
[1734932001029,3.80252,3322.7,3321.9,0.7705]
[1734932001220,3.01006,3322.2,3321.9,0.7705]
[1734932001545,3.00979,3322.5,3321.9,0.7705]
[1734932001833,3.0093,3323.1,3322.0,0.797]
[1734932002032,3.00904,3323.4,3322.1,3.8259]
[1734932002249,3.00904,3323.4,3322.3,3.0]
[1734932002532,3.00904,3323.4,3322.4,0.8259]
[1734932002938,3.15821314,3323.6,3322.4,0.8259]
[1734932003105,4.90398788,3323.3,3322.4,0.8259]
[1734932003308,4.90398788,3323.3,3322.5,0.8259]
[1734932003309,3.00906,3323.3,3322.5,0.8259]
[1734932004160,5.44528443,3324.2,3322.5,0.8259]
[1734932004438,4.90316788,3324.2,3323.0,0.7705]
[1734932004797,4.90316788,3324.2,3323.1,0.7705]
[1734932004988,1.89492788,3324.2,3323.1,0.7705]
[1734932005190,3.0087,3323.7,3323.1,0.7705]
[1734932005511,6.55830655,3324.6,3323.1,0.7705]
[1734932005723,3.00825,3324.2,3323.2,0.7705]
[1734932005920,3.00802,3324.5,3323.4,3.0]
[1734932006235,1.89492788,3324.8,3323.5,0.7705]
[1734932006396,1.89492788,3324.8,3323.7,0.7705]
[1734932006730,1.89492788,3324.8,3323.7,3.7705]
[1734932006937,4.90263788,3324.8,3323.7,3.7705]
[1734932007305,1.89492788,3324.8,3323.8,0.7557]
[1734932007637,1.89492788,3325.3,3324.0,3.0]
[1734932007937,1.89492788,3325.3,3323.5,3.55035655]
[1734932007938,1.89492788,3325.3,3324.3,3.0]
[1734932008091,1.89492788,3325.3,3324.6,3.0]
[1734932008293,1.89492788,3325.3,3324.7,0.7557]
[1734932008722,3.00707,3325.5,3324.7,0.7557]
[1734932008891,3.76031,3326.0,3324.7,0.7557]
[1734932009088,3.00695,3325.7,3324.7,0.7557]
[1734932009323,1.89492788,3326.1,3324.9,0.7623]
[1734932009556,1.89492788,3326.1,3324.8,11.98]
[1734932009557,1.89492788,3326.1,3325.3,0.7623]
[1734932009967,1.89492788,3326.3,3325.3,0.7623]
[1734932010127,2.63770472,3326.3,3325.3,0.7623]
[1734932010971,5.64405472,3326.3,3325.3,0.7623]
[1734932011330,3.74912684,3326.3,3325.3,0.7623]
[1734932011629,3.00635,3326.3,3325.3,0.7623]
[1734932011857,1.89492788,3327.2,3325.7,0.8011]
[1734932012153,1.89492788,3327.2,3325.8,0.8011]
[1734932012362,5.44528443,3327.4,3325.8,0.8011]
[1734932013546,3.00611,3326.6,3325.8,0.8011]
[1734932013868,3.00586,3326.9,3325.8,0.8011]
[1734932014033,3.00582,3326.9,3325.8,0.8011]
[1734932016946,0.31432302,3326.9,3325.8,0.8011]
[1734932017143,3.00589,3326.8,3325.8,0.8011]
[1734932018691,3.00598,3326.7,3325.8,0.8011]
[1734932019305,3.00687,3325.8,3324.8,0.7907]
[1734932019506,3.0069,3325.7,3324.8,0.7907]
[1734932020362,3.00712,3325.5,3324.8,0.7907]
[1734932020561,3.307882,3325.4,3324.8,0.7907]
[1734932021664,3.00737,3325.2,3324.8,0.7907]
[1734932021881,0.55,3325.3,3324.4,0.8107]
[1734932022483,3.00734,3325.2,3324.4,0.8107]
[1734932022685,0.55,3325.3,3324.4,0.8107]
[1734932023086,3.00736,3325.2,3324.4,0.8107]
[1734932023636,0.3858072,3325.2,3324.4,0.8107]
[1734932023828,3.00747,3325.1,3324.4,0.8107]
[1734932024408,0.3858072,3325.2,3324.4,0.8107]
[1734932024595,3.00743,3325.1,3324.4,0.8107]
[1734932028918,3.00757,3325.0,3324.4,0.8107]
[1734932029161,0.33933772,3325.0,3324.4,0.8107]
[1734932029446,3.00734,3325.2,3324.4,0.8107]
[1734932030229,0.55,3325.4,3324.4,0.8107]
[1734932030568,3.55718,3325.4,3324.4,0.8107]
[1734932031098,3.00718,3325.4,3324.4,0.8107]
[1734932035827,3.00726,3325.3,3324.4,0.8107]
[1734932036032,0.55,3325.7,3324.4,0.8107]
[1734932036671,3.00761,3324.9,3324.4,0.8107]
[1734932037046,0.55,3325.4,3324.4,0.8107]
[1734932038435,3.00754,3325.0,3324.4,0.8107]
[1734932038633,3.00772,3324.8,3324.4,0.8107]
[1734932038875,3.00791,3324.6,3324.4,0.8107]
[1734932039046,3.00748,3325.1,3324.4,0.8107]
[1734932039262,3.00766,3324.9,3324.4,0.8107]
[1734932039634,3.00738,3325.2,3324.4,0.8107]
[1734932042014,3.00754,3325.0,3324.4,0.8107]
[1734932042366,3.00762,3324.9,3324.4,0.8107]
[1734932042679,3.00797,3324.5,3323.3,0.7541]
[1734932043191,0.7838,3324.2,3323.3,0.7541]
[1734932043508,3.00872,3323.7,3323.3,0.7541]
[1734932043714,0.55,3324.1,3323.3,0.7541]
[1734932044013,3.0086,3323.8,3323.3,0.7541]
[1734932044513,3.00839,3324.1,3323.3,0.7541]
[1734932044672,0.55,3324.5,3323.3,0.7541]
[1734932045268,3.00852,3323.9,3323.3,0.7541]
[1734932045472,3.00834,3324.1,3323.3,0.7541]
[1734932046120,4.09978123,3324.5,3323.3,0.7541]
[1734932046281,3.0078,3324.7,3323.5,3.00887]
[1734932046473,3.0078,3324.7,3323.7,0.8261]
[1734932046908,3.54978123,3324.9,3323.7,0.8261]
[1734932047132,6.55744123,3324.9,3323.7,0.8261]
[1734932047416,3.00782,3324.7,3323.7,0.8261]
[1734932047613,3.54978123,3324.9,3323.7,0.8261]
[1734932047820,0.55,3324.8,3323.7,0.8261]
[1734932048169,3.00779,3324.7,3323.7,0.8261]
[1734932048368,3.00855,3323.9,3323.7,0.8261]
[1734932048615,0.55,3324.4,3323.7,0.8261]
[1734932048782,3.00843,3324.0,3323.7,0.8261]
[1734932048983,3.0086,3323.9,3323.7,0.8261]
[1734932049518,3.54978123,3324.5,3323.7,0.8261]
[1734932049519,3.0083,3324.2,3323.7,0.8261]
[1734932049815,0.55,3324.7,3323.7,0.8261]
[1734932050123,1.33413864,3324.7,3323.7,0.8261]
[1734932050416,3.00836,3324.1,3323.7,0.8261]
[1734932050768,3.00842,3324.0,3323.7,0.8261]
[1734932052221,3.00776,3324.8,3323.7,0.8261]
[1734932052416,3.54978123,3324.9,3323.7,0.8261]
[1734932053414,3.0079,3324.6,3323.7,0.8261]
[1734932054086,3.00807,3324.4,3323.7,0.8261]
[1734932055526,3.54978123,3324.9,3323.7,0.8261]
[1734932055685,3.00787,3324.7,3323.7,0.8261]
[1734932055877,3.00815,3324.3,3323.7,0.8261]
[1734932056073,3.00807,3324.4,3323.7,0.8261]
[1734932057714,3.54978123,3324.9,3323.7,0.8261]
[1734932057900,3.00786,3324.7,3323.7,0.8261]
[1734932058219,3.00816,3324.3,3323.7,0.8261]
[1734932059223,3.00793,3324.6,3323.7,0.8261]
[1734932059389,0.55,3324.8,3323.7,0.8261]
[1734932059593,3.00801,3324.5,3323.7,0.8261]
[1734932059820,3.00806,3324.4,3323.7,0.8261]
[1734932060019,3.00836,3324.1,3323.7,0.8261]
[1734932060185,3.00837,3324.1,3323.7,0.8261]
[1734932060574,3.00853,3323.9,3323.7,0.8261]
[1734932061293,0.55,3324.8,3323.7,0.8261]
[1734932061511,3.00806,3324.4,3323.7,0.8261]
[1734932061715,3.00785,3324.7,3323.7,0.8261]
[1734932062582,0.55,3324.9,3323.7,0.8261]
[1734932063277,3.00786,3324.7,3323.7,0.8261]
[1734932063478,3.0076,3325.0,3323.7,0.8261]
[1734932063678,3.00769,3324.9,3323.9,0.8202]
[1734932063973,3.0078,3324.7,3323.9,0.8202]
[1734932066223,2.75593274,3325.0,3323.9,0.8202]
[1734932066426,2.75593274,3324.7,3323.9,0.8202]
[1734932067680,0.55,3324.5,3323.9,0.8202]
[1734932067896,3.00842,3324.0,3323.9,0.8202]
[1734932068219,2.75593274,3324.4,3323.6,1.25001405]
[1734932068220,3.00867,3323.8,3323.6,2.06661405]
[1734932068727,3.00867,3323.8,3323.6,0.8166]
[1734932069942,3.00869,3323.7,3323.6,0.8166]
[1734932070105,3.00882,3323.6,3323.3,0.8166]
[1734932070851,3.00896,3323.4,3323.3,0.8166]
[1734932071051,3.00869,3323.7,3323.0,2.08211405]
[1734932071404,3.00923,3323.1,3323.0,0.8321]
[1734932071631,3.00896,3323.4,3322.7,2.02751405]
[1734932071831,2.75593274,3323.5,3322.7,2.02751405]
[1734932071832,3.00951,3322.8,3322.7,2.02751405]
[1734932072066,3.00951,3322.8,3322.7,1.25001405]
[1734932072534,2.75593274,3323.2,3322.4,2.02751405]
[1734932073351,5.76510274,3323.2,3322.4,2.02751405]
[1734932073556,3.00935,3323.0,3322.4,2.02751405]
[1734932073718,2.75593274,3323.2,3322.4,2.02751405]
[1734932073918,3.00943,3322.9,3322.4,0.7775]
[1734932074223,3.00924,3323.1,3322.4,0.7775]
[1734932074561,2.75593274,3323.2,3322.4,0.7775]
[1734932074740,3.33242301,3323.2,3322.4,0.7775]
[1734932074939,3.00934,3323.0,3322.4,0.7775]
[1734932075551,3.00943,3322.9,3322.4,0.7775]
[1734932075721,3.00952,3322.8,3322.4,0.7775]
[1734932076749,3.33242301,3323.2,3322.4,0.7775]
[1734932077065,0.6341553,3323.1,3322.4,0.7775]
[1734932077776,3.00946,3322.9,3322.4,0.7775]
[1734932078146,0.6341553,3323.1,3322.4,0.7775]
[1734932078349,3.00952,3322.8,3322.4,0.7775]
[1734932078980,0.8316,3322.8,3321.7,0.7511]
[1734932079280,3.00981,3322.5,3321.7,0.7511]
[1734932080483,3.00991,3322.4,3321.7,0.7511]
[1734932081478,2.75593274,3322.6,3321.7,0.7511]
[1734932081786,3.00996,3322.3,3321.7,0.7511]
[1734932082680,5.76589274,3322.3,3321.7,0.7511]
[1734932082968,6.34248201,3322.3,3321.7,0.7511]
[1734932083676,3.01005,3322.2,3321.7,0.7511]
[1734932083876,3.01027,3322.0,3321.3,0.7682]
[1734932084075,2.75593274,3321.7,3321.3,0.7682]
[1734932084384,2.75593274,3321.4,3320.7,0.7682]
[1734932084730,2.75593274,3321.7,3320.7,0.7682]
[1734932085086,3.01063,3321.6,3320.7,0.7682]
[1734932085236,2.75593274,3321.7,3320.7,0.7682]
[1734932085437,3.0107,3321.5,3320.7,0.7682]
[1734932086297,2.75593274,3321.7,3320.7,0.7682]
[1734932086470,3.01087,3321.3,3320.7,0.7682]
[1734932086872,2.75593274,3321.4,3320.7,0.7682]
[1734932087270,2.75593274,3322.0,3320.9,3.01118]
[1734932087493,2.75593274,3322.0,3321.1,0.7534]
[1734932087804,3.01005,3322.2,3321.2,0.7534]
[1734932088000,2.75593274,3322.3,3321.2,0.7534]
[1734932088159,2.75593274,3322.3,3321.3,3.7534]
[1734932088357,2.75593274,3322.3,3321.4,0.756]
[1734932089721,5.76564274,3322.6,3321.5,0.756]
[1734932090810,3.00978,3322.5,3321.5,0.756]
[1734932091211,2.75593274,3322.3,3321.5,0.756]
[1734932093213,2.75593274,3322.0,3321.5,0.756]
[1734932094391,3.01041,3321.8,3321.5,0.756]
[1734932094585,5.76617274,3322.0,3321.5,0.756]
[1734932094799,0.27559327,3322.3,3321.5,0.756]
[1734932094800,2.75593274,3322.3,3321.5,0.756]
[1734932096631,5.76535274,3322.9,3321.6,3.01058]
[1734932096837,5.76535274,3322.9,3321.7,3.8225]
[1734932097135,2.75593274,3323.2,3322.1,0.8225]
[1734932097519,5.76508274,3323.2,3322.1,3.0]
[1734932097688,5.76508274,3323.2,3322.2,0.8225]
[1734932098638,2.75593274,3323.2,3322.1,3.0101]
[1734932098801,2.75593274,3323.2,3322.3,0.8225]
[1734932099636,2.75593274,3322.9,3322.3,0.8225]
[1734932100340,2.75593274,3322.6,3321.6,3.8225]
[1734932100630,0.57652627,3322.9,3321.7,0.8185]
[1734932100631,2.75593274,3322.9,3321.7,0.8185]
[1734932100833,2.75593274,3322.9,3322.0,0.8185]
[1734932101386,0.7657,3323.4,3322.0,0.8185]
[1734932101387,3.00979,3322.5,3322.0,0.8185]
[1734932101587,3.01002,3322.3,3322.0,0.8185]
[1734932101886,3.01007,3322.2,3321.2,0.7803]
[1734932103514,3.00988,3322.4,3321.2,0.7803]
[1734932103853,0.7657,3322.8,3321.2,3.0]
[1734932104070,2.75593274,3322.9,3321.9,0.789]
[1734932104357,3.0099,3322.4,3321.9,0.789]
[1734932104567,2.75593274,3322.3,3321.9,0.789]
[1734932104709,0.27559327,3322.8,3320.7,0.8289]
[1734932104710,2.75593274,3322.0,3320.7,0.8289]
[1734932105155,3.01069,3321.5,3320.7,0.8289]
[1734932106154,2.75593274,3321.7,3320.7,0.8289]
[1734932106155,3.01088,3321.3,3320.7,0.8289]
[1734932106361,2.75593274,3321.4,3320.7,0.8289]
[1734932106542,0.35466327,3321.6,3320.7,0.8289]
[1734932107113,3.01098,3321.2,3320.7,0.8289]
[1734932107442,3.0115,3320.6,3320.2,0.8159]
[1734932107653,2.75593274,3320.4,3320.0,0.8159]
[1734932108158,3.01223,3319.8,3319.6,1.25001405]
[1734932108361,2.75593274,3319.7,3319.6,1.25001405]
[1734932108931,3.01241,3319.6,3319.2,0.8159]
[1734932109126,3.01256,3319.5,3319.2,0.8159]
[1734932109369,5.76853274,3319.4,3319.0,1.25001405]
[1734932110037,2.75593274,3319.4,3319.0,1.25001405]
[1734932110234,3.56010576,3319.5,3319.0,1.25001405]
[1734932110437,3.56010576,3319.5,3318.9,0.8159]
[1734932110837,6.57260576,3319.5,3318.9,0.8159]
[1734932111365,3.0127,3319.3,3318.4,0.8159]
[1734932111751,3.56010576,3319.1,3318.4,0.8159]
[1734932112063,3.01298,3319.0,3318.4,0.8159]
[1734932112272,3.56010576,3318.7,3318.0,0.8159]
[1734932112436,0.7541,3318.9,3317.5,1.25001405]
[1734932112437,3.56010576,3318.1,3317.5,1.25001405]
[1734932112771,3.56010576,3317.6,3317.5,1.25001405]
[1734932113141,3.56010576,3317.6,3317.3,1.25001405]
[1734932114325,6.57436576,3317.6,3317.3,1.25001405]
[1734932114557,6.57436576,3317.6,3317.1,0.0326313]